[Event "DVM U20w 2021"]
[Site "Kiel"]
[Date "2022.07.25"]
[Round "6"]
[White "Bangsa-Giesen, Citra"]
[Black "Sickmann, Lisa"]
[Result "0-1"]
[ECO "C50"]
[WhiteElo "1420"]
[BlackElo "1672"]
[Annotator "NA RC COMBH"]
[PlyCount "112"]
[EventDate "2022.07.23"]
[EventType "team-tourn"]
[EventRounds "7"]
[EventCountry "GER"]
[SourceTitle "playchess.com"]
[Source "ChessBase"]
[SourceQuality "1"]
[TimeControl "40/5400+30:1800+30"]

1. e4 {[%emt 0:00:02]} e5 {[%emt 0:00:08]} 2. Nf3 {[%emt 0:00:06]} Nc6 {[%emt 0:00:06]} 3. Bc4 {[%emt 0:00:04]} Bc5 {[%emt 0:00:05]} 4. d3 {[%emt 0:00:24]} Nf6 {[%emt 0:00:14]} 5. O-O {[%emt 0:01:52]} d6 {[%emt 0:00:36]} 6. Be3 {[%emt 0:01:56]} Bb6 {[%emt 0:00:11]} 7. c3 {[%emt 0:04:23]} O-O {[%emt 0:00:18]} 8. Bxb6 {[%emt 0:04:08]} axb6 {[%emt 0:00:08]} 9. Bb3 {[%emt 0:00:07]} Be6 {[%emt 0:00:19]} 10. Nbd2 {[%emt 0:01:59]} Bxb3 {[%emt 0:03:30]} 11. Qxb3 {[%emt 0:02:05]} Re8 {[%emt 0:06:06]} 12. Rfe1 {[%emt 0:01:12]} d5 {[%emt 0:01:49]} 13. Qc2 {[%emt 0:03:15]} Qd6 {[%emt 0:02:31]} 14. a3 {[%emt 0:03:23]} b5 {[%emt 0:03:22]} 15. h3 {[%emt 0:02:32]} Qc5 {[%emt 0:06:22]} 16. Rad1 {[%emt 0:10:01]} Rad8 {[%emt 0:07:10]} 17. exd5 {[%emt 0:07:39]} Qxd5 {[%emt 0:01:07]} 18. Ne4 {[%emt 0:03:02]} Nxe4 {[%emt 0:00:48]} 19. dxe4 {[%emt 0:00:52]} Qc4 {[%emt 0:00:37]} 20. g3 {[%emt 0:05:03]} g6 {[%emt 0:02:52]} 21. Kg2 {[%emt 0:01:07]} Nd4 {[%emt 0:06:19]} 22. Qc1 {[%emt 0:06:42]} Nb3 {[%emt 0:05:25]} 23. Qe3 {[%emt 0:02:56]} f6 {[%emt 0:02:02]} 24. Nd2 {[%emt 0:03:19]} Qe6 {[%emt 0:04:17]} 25. Nxb3 {[%emt 0:02:09]} Qxb3 {[%emt 0:00:19]} 26. Rd2 {[%emt 0:00:23]} Rd6 {[%emt 0:01:15]} 27. Rxd6 {[%emt 0:03:21]} cxd6 {[%emt 0:00:15]} 28. Qd2 {[%emt 0:00:13]} Rd8 {[%emt 0:01:48]} 29. Rd1 {[%emt 0:00:59]} Kg7 {[%emt 0:02:38]} 30. Qd5 {[%emt 0:09:35]} Qxb2 {[%emt 0:06:37]} 31. Qxb7+ {[%emt 0:00:09]} Kh6 {[%emt 0:01:07]} 32. Qe7 {[%emt 0:02:00]} Qe2 {[%emt 0:02:52]} 33. Qxd8 {[%emt 0:01:30]} Qxd1 {[%emt 0:00:16]} 34. Qxf6 {[%emt 0:00:08]} Qe2 {[%emt 0:03:31]} 35. Qf8+ {[%emt 0:04:03]} Kg5 {[%emt 0:01:49]} 36. Qe7+ {[%emt 0:03:24]} Kh6 {[%emt 0:00:14]} 37. Qh4+ {[%emt 0:01:24]} Kg7 {[%emt 0:00:19]} 38. Qe7+ {[%emt 0:00:28]} Kg8 {[%emt 0:01:07]} 39. Qe8+ {[%emt 0:01:36]} Kg7 {[%emt 0:00:12]} 40. Qe7+ {[%emt 0:01:09]} Kg8 {[%emt 0:00:18]} 41. Qxd6 {[%emt 0:35:57]} Qxe4+ {[%emt 0:30:13]} 42. Kh2 {[%emt 0:04:00]} Qe2 {[%emt 0:02:00]} 43. Qb8+ {[%emt 0:00:49]} Kg7 {[%emt 0:00:37]} 44. Qa7+ {[%emt 0:00:19]} Kg8 {[%emt 0:00:16]} 45. Qe3 {[%emt 0:00:00]} Qxe3 {[%emt 0:00:00]} 46. fxe3 {[%emt 0:00:00]} Kf7 {[%emt 0:00:00]} 47. e4 {[%emt 0:00:00]} Ke6 {[%emt 0:00:00]} 48. Kg2 {[%emt 0:00:00]} Kd6 {[%emt 0:00:00]} 49. Kf3 {[%emt 0:00:00]} Kc5 {[%emt 0:00:00]} 50. Ke3 {[%emt 0:00:00]} Kc4 {[%emt 0:00:00]} 51. Kd2 {[%emt 0:00:00]} Kb3 {[%emt 0:00:00]} 52. g4 {[%emt 0:00:00]} g5 {[%emt 0:03:49]} 53. Kd3 {[%emt 0:00:24]} Kxa3 {[%emt 0:00:01]} 54. c4 b4 55. c5 b3 56. c6 b2 0-1

[Event "DVM U20w 2021"]
[Site "Kiel"]
[Date "2022.07.25"]
[Round "6"]
[White "Neumeier, Valentina"]
[Black "Malinowsky, Celina"]
[Result "0-1"]
[ECO "C54"]
[WhiteElo "1392"]
[BlackElo "1519"]
[Annotator "NA RC COMBH"]
[PlyCount "34"]
[EventDate "2022.07.23"]
[EventType "team-tourn"]
[EventRounds "7"]
[EventCountry "GER"]
[SourceTitle "playchess.com"]
[Source "ChessBase"]
[SourceQuality "1"]
[TimeControl "40/5400+30:1800+30"]

1. e4 {[%emt 0:00:01]} e5 {[%emt 0:00:09]} 2. Nf3 {[%emt 0:00:03]} Nc6 {[%emt 0:00:10]} 3. Bc4 {[%emt 0:00:06]} Bc5 {[%emt 0:00:09]} 4. c3 {[%emt 0:00:03]} Nf6 {[%emt 0:00:19]} 5. d3 {[%emt 0:00:05]} d6 {[%emt 0:00:42]} 6. Nbd2 {[%emt 0:00:11]} a6 {[%emt 0:01:02]} 7. b4 {[%emt 0:00:38]} Ba7 {[%emt 0:02:13]} 8. a4 {[%emt 0:00:53]} Bd7 {[%emt 0:01:56]} 9. Qb3 {[%emt 0:00:47]} O-O {[%emt 0:01:02]} 10. O-O {[%emt 0:00:31]} Nh5 {[%emt 0:03:34]} 11. Re1 {[%emt 0:02:33]} Qf6 {[%emt 0:01:30]} 12. h3 {[%emt 0:03:10]} Nf4 {[%emt 0:02:34]} 13. Kf1 {[%emt 0:21:09]} Qh6 {[%emt 0:15:58]} 14. h4 {[%emt 0:07:33]} Qg6 {[%emt 0:04:38]} 15. g3 {[%emt 0:01:55]} Bh3+ {[%emt 0:00:28]} 16. Kg1 {[%emt 0:00:20]} Qxg3+ {[%emt 0:00:11]} 17. Kh1 {[%emt 0:00:32]} Qg2# {[%emt 0:00:08]} 0-1

[Event "DVM U20w 2021"]
[Site "Kiel"]
[Date "2022.07.25"]
[Round "6"]
[White "Albayrak, Melissa"]
[Black "Neitzel, Emma"]
[Result "1-0"]
[ECO "B01"]
[WhiteElo "1366"]
[BlackElo "1135"]
[Annotator "NA RC COMBH"]
[PlyCount "87"]
[EventDate "2022.07.23"]
[EventType "team-tourn"]
[EventRounds "7"]
[EventCountry "GER"]
[SourceTitle "playchess.com"]
[Source "ChessBase"]
[SourceQuality "1"]
[TimeControl "40/5400+30:1800+30"]

1. e4 {[%emt 0:00:01]} d5 {[%emt 0:00:04]} 2. exd5 {[%emt 0:00:11]} Qxd5 {[%emt 0:00:06]} 3. Nc3 {[%emt 0:00:15]} Qa5 {[%emt 0:00:04]} 4. Nf3 {[%emt 0:00:37]} c6 {[%emt 0:00:07]} 5. d4 {[%emt 0:00:58]} Nf6 {[%emt 0:00:10]} 6. Bd2 {[%emt 0:00:55]} Bf5 {[%emt 0:00:18]} 7. Be2 {[%emt 0:02:51]} e6 {[%emt 0:00:27]} 8. a3 {[%emt 0:03:35]} Qc7 {[%emt 0:01:00]} 9. Ne5 {[%emt 0:04:03]} Nbd7 {[%emt 0:01:44]} 10. f4 {[%emt 0:02:39]} Nxe5 {[%emt 0:02:57]} 11. fxe5 {[%emt 0:01:52]} Nd5 {[%emt 0:01:06]} 12. Nxd5 {[%emt 0:02:01]} cxd5 {[%emt 0:00:14]} 13. c3 {[%emt 0:00:17]} a6 {[%emt 0:01:12]} 14. O-O {[%emt 0:01:34]} Be7 {[%emt 0:00:43]} 15. Bg4 {[%emt 0:01:17]} Bd3 {[%emt 0:06:06]} 16. Rf2 {[%emt 0:02:54]} O-O {[%emt 0:02:08]} 17. Bg5 {[%emt 0:05:10]} Bxg5 {[%emt 0:01:12]} 18. Qxd3 {[%emt 0:00:05]} Qc4 {[%emt 0:01:32]} 19. Rf3 {[%emt 0:05:36]} Qxd3 {[%emt 0:03:59]} 20. Rxd3 {[%emt 0:00:07]} g6 {[%emt 0:03:07]} 21. Rf1 {[%emt 0:02:31]} h5 {[%emt 0:03:12]} 22. Bxh5 {[%emt 0:00:17]} gxh5 {[%emt 0:07:18]} 23. Rg3 {[%emt 0:00:07]} Kh7 {[%emt 0:00:43]} 24. Rxg5 {[%emt 0:00:07]} Kh6 {[%emt 0:00:24]} 25. h4 {[%emt 0:00:47]} Rg8 {[%emt 0:02:42]} 26. Rf6+ {[%emt 0:00:28]} Rg6 {[%emt 0:00:48]} 27. Rgxg6+ {[%emt 0:00:07]} fxg6 {[%emt 0:00:12]} 28. Rxe6 {[%emt 0:00:04]} Rd8 {[%emt 0:01:42]} 29. Rd6 {[%emt 0:00:04]} Re8 {[%emt 0:01:09]} 30. Rxd5 {[%emt 0:00:06]} Re6 {[%emt 0:01:20]} 31. Rd6 {[%emt 0:00:19]} Re7 {[%emt 0:00:24]} 32. Rf6 {[%emt 0:02:59]} Kg7 {[%emt 0:01:18]} 33. Kf2 {[%emt 0:01:28]} Re8 {[%emt 0:08:29]} 34. Kf3 {[%emt 0:00:29]} Rd8 {[%emt 0:01:12]} 35. Ke4 {[%emt 0:00:47]} Rd7 {[%emt 0:01:11]} 36. e6 {[%emt 0:02:55]} Rxd4+ {[%emt 0:04:00]} 37. cxd4 {[%emt 0:00:15]} Kxf6 {[%emt 0:00:07]} 38. d5 {[%emt 0:00:10]} Ke7 {[%emt 0:01:06]} 39. Ke5 {[%emt 0:00:06]} Ke8 {[%emt 0:00:33]} 40. d6 {[%emt 0:00:08]} Kd8 {[%emt 0:00:23]} 41. Kf6 {[%emt 0:30:08]} Ke8 {[%emt 0:30:20]} 42. d7+ {[%emt 0:00:21]} Kd8 {[%emt 0:00:04]} 43. Kf7 {[%emt 0:00:15]} Kc7 {[%emt 0:00:44]} 44. e7 {[%emt 0:00:09]} 1-0

[Event "DVM U20w 2021"]
[Site "Kiel"]
[Date "2022.07.25"]
[Round "6"]
[White "Tabakh, Tassnim"]
[Black "Browning, Rebecca"]
[Result "0-1"]
[ECO "D03"]
[WhiteElo "1241"]
[BlackElo "1938"]
[Annotator "TA"]
[PlyCount "74"]
[EventDate "2022.07.23"]
[EventType "team-tourn"]
[EventRounds "7"]
[EventCountry "GER"]
[SourceTitle "playchess.com"]
[Source "ChessBase"]
[SourceQuality "1"]
[TimeControl "40/5400+30:1800+30"]

{[%evp 9,74,18,23,9,8,0,-1,-8,-7,0,27,22,29,0,-14,-58,-54,-104,-133,-204,-214,-199,-207,-218,-216,-685,-669,-770,-768,-1056,-686,-687,-686,-688,-678,-715,-699,-768,-784,-790,-772,-883,-883,-856,-849,-1017,-1018,-968,-963,-1583,-1438,-1645,-1549,-1618,-1552,-1461,-1329,-1086,-985,-12840,-6945,-29987,-29988,-29988,-29989,-29990,-818]} 1. Nf3 {[%emt 0:00:03]} d5 {[%emt 0:00:06]} 2. d4 {[%emt 0:00:05]} Nf6 {[%emt 0:00:05]} 3. Bg5 {[%emt 0:00:16]} h6 {[%emt 0:00:14]} 4. Bxf6 {[%emt 0:00:12]} exf6 {[%emt 0:00:05]} 5. e3 {[%emt 0:02:35]} Bd6 {[%emt 0:01:31] [#]} 6. h3 $146 {[%emt 0:02:04] D03: 1 d4 d5 2 Nf3 Nf6 3 Bg5, including Torre Attack with early ...d5.} ({Predecessor:} 6. c4 dxc4 7. Bxc4 O-O 8. Nc3 Nd7 9. Qc2 c6 10. Bb3 a5 11. a3 Re8 12. Nh4 Nf8 {0-1 (72) Artemiev,V (2709)-Kuzubov,Y (2642) Chess.com INT 2021}) 6... O-O {[%emt 0:00:48]} 7. Bd3 {[%emt 0:02:23]} Nd7 {[%emt 0:01:44]} 8. c4 {[%emt 0:04:12] The position is equal.} dxc4 {[%emt 0:00:27]} 9. Bxc4 {[%emt 0:00:15]} c5 {[%emt 0:00:23]} 10. O-O {[%emt 0:01:22]} cxd4 {[%emt 0:00:48]} 11. exd4 {[%emt 0:01:03]} (11. Nxd4 $5 {[%cal Rd4f5]} Ne5 12. Bd5 $14) 11... Nb6 {[%emt 0:02:39]} 12. b3 {[%emt 0:01:28]} Bf5 {[%emt 0:02:45]} 13. Nc3 {[%emt 0:03:31] [#] Black keeps a firm grip on the game.} ({Better is} 13. Nh4 $15 Be6 14. Bxe6 fxe6 15. Nd2) 13... Rc8 $1 $17 {[%emt 0:00:50][%cal Ba8c8,Bc8c4,Bc4b4,Bb4b5,Bb5a5,Ba5a4][%mdl 32]} 14. Nb5 {[%emt 0:04:44]} (14. Bd3 $17) 14... Nxc4 $19 {[%emt 0:00:28]} 15. bxc4 {[%emt 0:01:05]} Rxc4 {[%emt 0:00:11]} 16. Nh4 {[%emt 0:04:48]} Bh7 {[%emt 0:01:20] ...Bb8 is the strong threat. A strong pair of Bishops.} 17. Qb3 $2 {[%emt 0:02:48]} (17. Nxd6 Qxd6 18. Nf3) 17... Rb4 {[%emt 0:00:19]} 18. Qa3 {[%emt 0:01:24]} Rxb5 {[%emt 0:00:11]} 19. Qxa7 {[%emt 0:01:16]} Qa5 {[%emt 0:01:58]} 20. Qxa5 {[%emt 0:00:18]} Rxa5 {[%emt 0:00:04]} 21. Rfe1 {[%emt 0:00:58]} Ra4 {[%emt 0:00:53]} 22. Red1 {[%emt 0:01:21]} Be4 {[%emt 0:00:36]} 23. g3 {[%emt 0:01:11]} Rfa8 {[%emt 0:00:13]} 24. Rd2 {[%emt 0:01:47]} g6 {[%emt 0:00:28][%cal Bg7g6,Bg6g5][%mdl 32]} 25. d5 {[%emt 0:00:51]} g5 {[%emt 0:01:23]} 26. Ng2 {[%emt 0:00:28]} Be5 {[%emt 0:00:57]} 27. Rc1 {[%emt 0:01:14]} Rxa2 {[%emt 0:00:40]} 28. Rxa2 {[%emt 0:00:37]} Rxa2 {[%emt 0:00:05]} 29. Rd1 {[%emt 0:00:27]} Ra1 {[%emt 0:01:49]} 30. Rxa1 {[%emt 0:00:35]} Bxa1 {[%emt 0:00:02]} 31. d6 {[%emt 0:00:30]} Kf8 {[%emt 0:00:04]} 32. Ne3 {[%emt 0:00:28]} Bd4 {[%emt 0:00:27] [#] Threatens to win with ...Bxe3.} 33. Ng4 {[%emt 0:00:50]} h5 {[%emt 0:00:09]} 34. Nh6 {[%emt 0:01:05]} Kg7 {[%emt 0:00:32]} 35. Nxf7 {[%emt 0:01:37]} Kxf7 {[%emt 0:00:06] Black mates.} 36. Kf1 {[%emt 0:00:57]} Bf3 {[%emt 0:00:15]} 37. Ke1 {[%emt 0:00:21]} Bc3+ {[%emt 0:00:05] Weighted Error Value: White=0.69/Black=0.23 (precise)} 0-1

[Event "DVM U20w 2021"]
[Site "Kiel"]
[Date "2022.07.25"]
[Round "6"]
[White "Hashemi, Nasanin Sahra"]
[Black "Wilmink, Anna"]
[Result "0-1"]
[ECO "D00"]
[WhiteElo "798"]
[BlackElo "1692"]
[Annotator "NA RC COMBH"]
[PlyCount "86"]
[EventDate "2022.07.23"]
[EventType "team-tourn"]
[EventRounds "7"]
[EventCountry "GER"]
[SourceTitle "playchess.com"]
[Source "ChessBase"]
[SourceQuality "1"]
[TimeControl "40/5400+30:1800+30"]

1. d4 {[%emt 0:00:01]} Nf6 {[%emt 0:00:07]} 2. Nf3 {[%emt 0:00:37]} d5 {[%emt 0:00:17]} 3. Nc3 {[%emt 0:00:21]} c5 {[%emt 0:00:33]} 4. Be3 {[%emt 0:02:03]} Nc6 {[%emt 0:04:15]} 5. Qd3 {[%emt 0:03:35]} Nb4 {[%emt 0:02:36]} 6. Qd2 {[%emt 0:00:53]} Bf5 {[%emt 0:01:46]} 7. O-O-O {[%emt 0:00:18]} Bxc2 {[%emt 0:02:38]} 8. Re1 {[%emt 0:00:08]} Ne4 {[%emt 0:04:27]} 9. Qxc2 {[%emt 0:02:03]} Nxc2 {[%emt 0:00:25]} 10. Kxc2 {[%emt 0:00:04]} Nxc3 {[%emt 0:00:47]} 11. Kxc3 {[%emt 0:00:11]} cxd4+ {[%emt 0:01:21]} 12. Bxd4 {[%emt 0:05:02]} Rc8+ {[%emt 0:03:39]} 13. Kd2 {[%emt 0:01:05]} Qc7 {[%emt 0:01:47]} 14. Bc3 {[%emt 0:00:19]} f6 {[%emt 0:02:46]} 15. Rc1 {[%emt 0:12:55]} e5 {[%emt 0:01:38]} 16. e3 {[%emt 0:01:15]} Qd7 {[%emt 0:04:34]} 17. Ba5 {[%emt 0:03:25]} Rxc1 {[%emt 0:01:20]} 18. Kxc1 {[%emt 0:00:13]} Qa4 {[%emt 0:03:25]} 19. Bd2 {[%emt 0:03:13]} Bb4 {[%emt 0:01:45]} 20. Bxb4 {[%emt 0:01:00]} Qxb4 {[%emt 0:00:22]} 21. Nd2 {[%emt 0:02:59]} Ke7 {[%emt 0:02:42]} 22. Bd3 {[%emt 0:01:04]} Rc8+ {[%emt 0:01:32]} 23. Kd1 {[%emt 0:01:14]} e4 {[%emt 0:02:17]} 24. Bb1 {[%emt 0:02:20]} Qxb2 {[%emt 0:01:09]} 25. Ke2 {[%emt 0:01:31]} Qb5+ {[%emt 0:02:01]} 26. Kd1 {[%emt 0:01:57]} Qb2 {[%emt 0:02:28]} 27. Ke2 {[%emt 0:00:34]} Rc1 {[%emt 0:01:25]} 28. Rxc1 {[%emt 0:00:08]} Qxc1 {[%emt 0:00:07]} 29. g3 {[%emt 0:00:10]} h5 {[%emt 0:01:19]} 30. h4 {[%emt 0:00:50]} b5 {[%emt 0:01:01]} 31. a3 {[%emt 0:00:35]} Qxa3 {[%emt 0:00:37]} 32. Bc2 {[%emt 0:00:31]} Qc1 {[%emt 0:01:49]} 33. Bd1 {[%emt 0:00:21]} Qb2 {[%emt 0:03:07]} 34. Ke1 {[%emt 0:00:44]} a5 {[%emt 0:02:24]} 35. Bxh5 {[%emt 0:00:39]} a4 {[%emt 0:00:36]} 36. Nf1 {[%emt 0:00:34]} a3 {[%emt 0:00:39]} 37. Nh2 {[%emt 0:00:25]} a2 {[%emt 0:00:13]} 38. Kf1 {[%emt 0:00:47]} a1=Q+ {[%emt 0:00:15]} 39. Kg2 {[%emt 0:00:08]} Qbc1 {[%emt 0:00:56]} 40. Kh3 {[%emt 0:00:44]} Qh1 {[%emt 0:00:26]} 41. f3 {[%emt 0:30:56]} Qaf1+ {[%emt 0:30:17]} 42. Kg4 {[%emt 0:00:20]} Qxh2 {[%emt 0:00:13]} 43. fxe4 {[%emt 0:00:29]} Qhe2# {[%emt 0:00:17]} 0-1

[Event "DVM U20w 2021"]
[Site "Kiel"]
[Date "2022.07.26"]
[Round "7"]
[White "Peglau, Dora"]
[Black "Falke, Ornella"]
[Result "0-1"]
[ECO "A06"]
[WhiteElo "1920"]
[BlackElo "1912"]
[Annotator "TA"]
[PlyCount "78"]
[EventDate "2022.07.23"]
[EventType "team-tourn"]
[EventRounds "7"]
[EventCountry "GER"]
[SourceTitle "playchess.com"]
[Source "ChessBase"]
[SourceQuality "1"]
[TimeControl "40/5400+30:1800+30"]

{[%evp 9,78,13,13,0,0,0,0,3,50,20,49,13,100,97,118,86,87,94,117,129,158,120,105,6,121,-54,141,144,87,-90,104,90,93,90,181,0,0,0,31,0,0,-5,298,321,433,319,554,516,640,466,517,546,525,531,950,0,0,0,0,0,83,66,236,-395,-394,-29987,-29988,-29996,26,-29997,-29998]} 1. Nf3 {[%emt 0:00:03]} c5 {[%emt 0:00:25]} 2. e3 {[%emt 0:01:43]} Nf6 {[%emt 0:01:32]} 3. b3 {[%emt 0:01:51]} Nc6 {[%emt 0:02:04]} 4. Bb2 {[%emt 0:00:33]} d5 {[%emt 0:04:33]} 5. Bb5 {[%emt 0:00:47]} e6 {[%emt 0:01:23]} 6. Bxc6+ {[%emt 0:01:31] A06: Réti Opening: 1 Nf3 d5.} bxc6 {[%emt 0:00:04]} 7. O-O {[%emt 0:00:17]} Bd6 {[%emt 0:05:52]} 8. d3 {[%emt 0:01:07] [#] The position is equal.} h5 $146 {[%emt 0:05:00]} (8... O-O $11) ({Predecessor:} 8... O-O 9. Ne5 Qc7 10. f4 Rb8 11. Qf3 Ne8 12. Nd2 f6 13. Ng4 Bd7 14. e4 Be7 {1-0 (54) Novikov,M (2503)-Stepanov,A (2381) Tula 2010}) 9. Nbd2 {[%emt 0:03:33]} a5 {[%emt 0:05:45]} 10. c4 {[%emt 0:04:09]} (10. e4 $5 {[%cal Re4e5]} Bc7 11. a4 $14) 10... Rg8 {[%emt 0:07:27]} (10... Kf8 $11) 11. e4 $16 {[%emt 0:07:52]} Bf4 {[%emt 0:02:57]} 12. cxd5 {[%emt 0:04:22]} cxd5 {[%emt 0:00:29]} 13. Qc2 {[%emt 0:02:41]} Ba6 {[%emt 0:07:03]} 14. Rfe1 {[%emt 0:11:49]} Rc8 {[%emt 0:02:17][%cal Oh5h4]} 15. exd5 $1 {[%emt 0:08:02]} Nxd5 {[%emt 0:00:53]} 16. a3 {[%emt 0:05:00] Against Nb4} (16. d4 $1 $16) 16... g5 {[%emt 0:03:54]} (16... Bxd2 $11 17. Qxd2 g5) 17. Ne5 $2 {[%emt 0:09:53]} ({White should try} 17. Ne4 $16) 17... f6 $2 {[%emt 0:05:04]} (17... Bxd2 $15 {keeps the upper hand.} 18. Qxd2 Nf4) 18. Nec4 $1 {[%emt 0:02:56]} Kf7 {[%emt 0:00:13]} (18... Qe7 $142) 19. d4 $2 {[%emt 0:01:00]} (19. Ne4 $16 {and life is bright.}) 19... cxd4 $2 {[%emt 0:11:46]} (19... Bxd2 $17 {stays on course.} 20. Nxd2 cxd4 21. Qh7+ Rg7 22. Qxh5+ Kg8) 20. Qh7+ {[%emt 0:00:33]} (20. Bxd4 Bxd2 21. Qxd2 (21. Qh7+ $2 Rg7 $19) 21... a4 22. Bxf6 (22. Qe2 $2 Nf4 $19) 22... Qxf6 $15) 20... Rg7 {[%emt 0:00:27][%cal Bg8g7,Bg7h7,Bh7h4][%mdl 32]} 21. Qxh5+ {[%emt 0:00:27]} Ke7 {[%emt 0:01:03]} (21... Rg6 $16 {was necessary.}) 22. Qg4 $2 {[%emt 0:02:59]} (22. Bxd4 Bxd2 23. Nxd2 Nf4 $17) ({White has to play} 22. Nf3 $1 $18 {[%cal Rf3d4]} Nc3 23. g3) 22... Qd7 $11 {[%emt 0:02:22]} 23. Bxd4 {[%emt 0:02:47]} Rh7 {[%emt 0:01:57]} 24. h3 {[%emt 0:07:08]} (24. g3 $5 {[%cal Rg3f4]} Bxd2 25. Nxd2 $11) 24... Rh4 {[%emt 0:01:06]} 25. Qe2 {[%emt 0:01:24]} g4 $2 {[%emt 0:06:00][%mdl 8192]} (25... a4 $11 {and Black has nothing to worry.} 26. Ne4 axb3) 26. Ne4 $18 {[%emt 0:03:25]} (26. hxg4 $2 Rch8 27. Qxe6+ (27. Bc5+ $2 Kf7 $19) 27... Qxe6 28. Rxe6+ Kxe6 $19) 26... e5 {[%emt 0:14:59]} 27. Bc5+ {[%emt 0:03:13]} Ke6 $2 {[%emt 0:01:17]} (27... Rxc5 {might work better.} 28. Nxc5 Nc3 29. Nxd7 (29. Qd3 Qxd3 30. Nxd3 Bh6 $18) 29... Nxe2+ 30. Rxe2 Kxd7) 28. g3 {[%emt 0:02:03]} Qg7 {[%emt 0:01:45][%cal Oh4h3]} 29. gxh4 {[%emt 0:02:46]} gxh3+ {[%emt 0:00:12] [#]} 30. Ng5+ $1 {[%emt 0:00:35]} fxg5 {[%emt 0:02:04]} 31. Qg4+ {[%emt 0:00:20]} Kf6 {[%emt 0:00:17] [#] Strongly threatening ...Bb7.} 32. hxg5+ $2 {[%emt 0:02:46]} (32. Nxe5 $1 $18 {[%mdl 512]} Bb7 33. Bd4 h2+ 34. Kh1 Ne3+ 35. Nf3+ Kg6 36. h5+ (36. Bxg7 $2 {loses.} Nxg4 37. Kg2 gxh4 $19) 36... Kh7 37. fxe3 (37. Bxg7 $2 Nxg4 38. Kg2 h1=R $19)) 32... Qxg5 $11 {[%emt 0:01:09] Really sharp!} 33. Qxg5+ {[%emt 0:00:18]} Kxg5 {[%emt 0:00:27]} 34. Nd6 {[%emt 0:01:56]} Rg8 {[%emt 0:01:31]} ({Don't do} 34... h2+ 35. Kg2 (35. Kh1 Rc6 $14) 35... Rc6 36. b4 $14) (34... Rc6 $11) 35. Kh1 $16 {[%emt 0:03:19] Black must now prevent Rg1+.} Kh5 $2 {[%emt 0:01:07] [#]} (35... Kf6 $14) 36. Rg1 $4 {[%emt 0:00:37][%mdl 8192] [#]} (36. b4 $1 $18 {[%cal Rb4b5] is the narrow road to win.}) 36... Be2 $19 {[%emt 0:00:12] ( -> ...Bf3+)} 37. Rxg8 $2 {[%emt 0:01:17]} (37. Rg3 $19 Rxg3 38. fxg3 Bxg3 39. Ra2 Bf3+ 40. Kg1) 37... Bf3+ {[%emt 0:00:03]} 38. Rg2 {[%emt 0:00:05]} Bxg2+ {[%emt 0:00:09] A strong pair of Bishops.} 39. Kg1 {[%emt 0:00:01]} Bf3 {[%emt 0:00:15] Weighted Error Value: White=0.84/Black=0.85} 0-1

[Event "DVM U20w 2021"]
[Site "Kiel"]
[Date "2022.07.26"]
[Round "7"]
[White "Peglau, Charis"]
[Black "Margaryan, Susanna"]
[Result "1-0"]
[ECO "B16"]
[WhiteElo "1870"]
[BlackElo "1436"]
[Annotator "NA RC COMBH"]
[PlyCount "97"]
[EventDate "2022.07.23"]
[EventType "team-tourn"]
[EventRounds "7"]
[EventCountry "GER"]
[SourceTitle "playchess.com"]
[Source "ChessBase"]
[SourceQuality "1"]
[TimeControl "40/5400+30:1800+30"]

1. e4 {[%emt 0:00:06]} c6 {[%emt 0:00:19]} 2. d4 {[%emt 0:00:09]} d5 {[%emt 0:00:03]} 3. Nc3 {[%emt 0:00:06]} dxe4 {[%emt 0:00:04]} 4. Nxe4 {[%emt 0:00:06]} Nf6 {[%emt 0:00:05]} 5. Nxf6+ {[%emt 0:00:04]} gxf6 {[%emt 0:00:04]} 6. c3 {[%emt 0:00:33]} Qc7 {[%emt 0:00:33]} 7. Qc2 {[%emt 0:02:31]} Bg4 {[%emt 0:02:26]} 8. Be3 {[%emt 0:03:57]} Nd7 {[%emt 0:00:17]} 9. Ne2 {[%emt 0:02:02]} e6 {[%emt 0:02:38]} 10. Ng3 {[%emt 0:09:04]} Bd6 {[%emt 0:04:37]} 11. h3 {[%emt 0:06:59]} Bxg3 {[%emt 0:01:07]} 12. hxg4 {[%emt 0:01:51]} Bf4 {[%emt 0:06:50]} 13. Bxf4 {[%emt 0:03:41]} Qxf4 {[%emt 0:04:41]} 14. Be2 {[%emt 0:00:08]} h6 {[%emt 0:02:44]} 15. g3 {[%emt 0:02:40]} Qc7 {[%emt 0:01:31]} 16. O-O-O {[%emt 0:01:30]} O-O-O {[%emt 0:00:21]} 17. Rh5 {[%emt 0:03:42]} c5 {[%emt 0:02:11]} 18. Rdh1 {[%emt 0:18:21]} (18. d5 $142) 18... cxd4 {[%emt 0:01:39]} 19. cxd4 {[%emt 0:00:02]} Qxc2+ {[%emt 0:00:31]} 20. Kxc2 {[%emt 0:00:01]} Nb6 {[%emt 0:01:27]} 21. Rxh6 {[%emt 0:00:39]} Rxh6 {[%emt 0:00:16]} 22. Rxh6 {[%emt 0:00:01]} Rxd4 {[%emt 0:00:33]} 23. Rxf6 {[%emt 0:00:13]} Rd7 {[%emt 0:01:20]} 24. Bf3 {[%emt 0:12:13]} Kd8 {[%emt 0:02:56]} 25. g5 {[%emt 0:03:30]} Ke8 {[%emt 0:07:55]} 26. Bh5 {[%emt 0:03:23]} Nd5 {[%emt 0:00:47]} 27. Rxe6+ {[%emt 0:00:13]} Kf8 {[%emt 0:00:46]} 28. Re4 {[%emt 0:02:52]} b5 {[%emt 0:05:26]} 29. a3 {[%emt 0:04:42]} a5 {[%emt 0:03:07]} 30. Re5 {[%emt 0:09:36]} b4 {[%emt 0:01:04]} 31. Bf3 {[%emt 0:01:30]} Nb6 {[%emt 0:00:48]} 32. axb4 {[%emt 0:02:18]} axb4 {[%emt 0:00:23]} 33. Be2 {[%emt 0:00:33]} Kg7 {[%emt 0:02:07]} 34. f4 {[%emt 0:00:57]} f6 {[%emt 0:00:26]} 35. gxf6+ {[%emt 0:01:05]} Kxf6 {[%emt 0:00:03]} 36. Bg4 {[%emt 0:03:24]} b3+ {[%emt 0:01:01]} 37. Kc3 {[%emt 0:01:48]} Rg7 {[%emt 0:00:58]} 38. Re6+ {[%emt 0:00:20]} Kf7 {[%emt 0:00:16]} 39. Rxb6 {[%emt 0:00:17]} Rxg4 {[%emt 0:00:11]} 40. Kxb3 {[%emt 0:02:01]} Rxg3+ $18 {[%emt 0:00:08]} 41. Ka4 {[%emt 0:30:15]} Rg4 {[%emt 0:30:27]} 42. Rb4 {[%emt 0:00:09]} Kf6 {[%emt 0:00:25]} 43. Rc4 {[%emt 0:00:21]} Kf5 {[%emt 0:00:14]} 44. b4 {[%emt 0:00:17]} Rxf4 {[%emt 0:00:12]} 45. Rxf4+ {[%emt 0:00:29]} Kxf4 {[%emt 0:00:04]} 46. Kb5 {[%emt 0:00:23]} Ke5 {[%emt 0:00:02]} 47. Kc6 {[%emt 0:00:12]} Ke6 {[%emt 0:00:09]} 48. b5 {[%emt 0:00:10]} Ke7 {[%emt 0:00:25]} 49. Kc7 {[%emt 0:00:03]} 1-0